[Event "Titled Tuesday Blitz August 15 Late 2023"]
[White "Martinez Alcantara, Jose Eduardo"]
[Black "Eljanov, Pavel"]
[WhiteFideId "3805662"]
[BlackFideId "14102951"]
[WhiteElo "3009"]
[BlackElo "2927"]
[Result "1-0"]
[Round "10"]
[TimeControl "180+1"]
[Date "2023.08.15"]
[WhiteClock "0:00:41"]
[BlackClock "0:00:04"]
[Board "6"]

1. e4 {[%clk 0:03:00]}  e5 {[%clk 0:03:00]} 2. Nf3 {[%clk 0:03:01]}  Nc6 {[%clk 0:03:00]} 3. Nc3 {[%clk 0:03:02]}  Nf6 {[%clk 0:03:00]} 4. h3 {[%clk 0:03:02]}  d5 {[%clk 0:02:52]} 5. exd5 {[%clk 0:03:03]}  Nxd5 {[%clk 0:02:53]} 6. Bb5 {[%clk 0:03:03]}  Nxc3 {[%clk 0:02:53]} 7. bxc3 {[%clk 0:03:04]}  Bd6 {[%clk 0:02:52]} 8. O-O {[%clk 0:03:04]}  O-O {[%clk 0:02:51]} 9. d4 {[%clk 0:03:05]}  Bd7 {[%clk 0:02:49]} 10. Rb1 {[%clk 0:03:03]}  exd4 {[%clk 0:02:44]} 11. cxd4 {[%clk 0:03:03]}  b6 {[%clk 0:02:36]} 12. Re1 {[%clk 0:02:57]}  h6 {[%clk 0:02:27]} 13. Bd3 {[%clk 0:02:54]}  Nb4 {[%clk 0:02:21]} 14. Be4 {[%clk 0:02:54]}  Bc6 {[%clk 0:02:14]} 15. Bd2 {[%clk 0:02:37]}  Bxe4 {[%clk 0:02:09]} 16. Rxe4 {[%clk 0:02:38]}  a5 {[%clk 0:02:06]} 17. c3 {[%clk 0:02:33]}  Nd5 {[%clk 0:02:04]} 18. c4 {[%clk 0:02:29]}  Nf6 {[%clk 0:02:03]} 19. Re1 {[%clk 0:02:29]}  Re8 {[%clk 0:01:54]} 20. Qc2 {[%clk 0:02:29]}  Qd7 {[%clk 0:01:45]} 21. Ne5 {[%clk 0:02:26]}  Bxe5 {[%clk 0:01:44]} 22. dxe5 {[%clk 0:02:27]}  Nh7 {[%clk 0:01:42]} 23. Rbd1 {[%clk 0:02:23]}  Qc6 {[%clk 0:01:41]} 24. Bf4 {[%clk 0:02:11]}  Nf8 {[%clk 0:01:39]} 25. Rd5 {[%clk 0:02:07]}  Rad8 {[%clk 0:01:34]} 26. Qd3 {[%clk 0:02:07]}  Ne6 {[%clk 0:01:31]} 27. Be3 {[%clk 0:02:07]}  Qa4 {[%clk 0:01:13]} 28. f4 {[%clk 0:01:52]}  Rxd5 {[%clk 0:01:11]} 29. Qxd5 {[%clk 0:01:39]}  Qxa2 {[%clk 0:01:06]} 30. f5 {[%clk 0:01:36]}  Nf8 {[%clk 0:01:07]} 31. e6 {[%clk 0:01:14]}  fxe6 {[%clk 0:01:04]} 32. fxe6 {[%clk 0:01:15]}  c6 {[%clk 0:00:42]} 33. Qd3 {[%clk 0:01:16]}  Rxe6 {[%clk 0:00:36]} 34. Rf1 {[%clk 0:01:15]}  Rf6 {[%clk 0:00:26]} 35. Rxf6 {[%clk 0:00:51]}  gxf6 {[%clk 0:00:26]} 36. Bd4 {[%clk 0:00:52]}  b5 {[%clk 0:00:21]} 37. Qg3+ {[%clk 0:00:49]}  Kf7 {[%clk 0:00:19]} 38. Qc7+ {[%clk 0:00:50]}  Kg6 {[%clk 0:00:16]} 39. Qg3+ {[%clk 0:00:50]}  Kf7 {[%clk 0:00:16]} 40. Qc7+ {[%clk 0:00:50]}  Kg6 {[%clk 0:00:16]} 41. Qxc6 {[%clk 0:00:49]}  Nh7 {[%clk 0:00:14]} 42. Qe4+ {[%clk 0:00:44]}  Kg7 {[%clk 0:00:14]} 43. cxb5 {[%clk 0:00:43]}  a4 {[%clk 0:00:13]} 44. b6 {[%clk 0:00:41]}  Qb3 {[%clk 0:00:13]} 45. b7 {[%clk 0:00:42]}  Ng5 {[%clk 0:00:04]} 46. Qe7+ {[%clk 0:00:41]} 1-0


[Site "https://www.chess.com"]

[Event "Titled Tuesday Blitz August 15 Late 2023"]
[White "Kovalev, Vladislav"]
[Black "Elsa167"]
[WhiteFideId "13504398"]
[WhiteElo "2879"]
[BlackElo "2945"]
[Result "1-0"]
[Round "10"]
[TimeControl "180+1"]
[Date "2023.08.15"]
[WhiteClock "0:00:08"]
[BlackClock "0:00:00"]
[Board "8"]

1. e4 {[%clk 0:03:00]}  c5 {[%clk 0:02:59]} 2. Nf3 {[%clk 0:03:01]}  d6 {[%clk 0:02:59]} 3. Bb5+ {[%clk 0:03:01]}  Nd7 {[%clk 0:02:59]} 4. O-O {[%clk 0:03:01]}  a6 {[%clk 0:02:59]} 5. Bd3 {[%clk 0:03:02]}  g6 {[%clk 0:02:59]} 6. c3 {[%clk 0:03:00]}  Bg7 {[%clk 0:02:59]} 7. Bc2 {[%clk 0:03:00]}  b5 {[%clk 0:02:59]} 8. d4 {[%clk 0:03:00]}  cxd4 {[%clk 0:03:00]} 9. cxd4 {[%clk 0:03:01]}  Bb7 {[%clk 0:03:00]} 10. Re1 {[%clk 0:02:59]}  Ngf6 {[%clk 0:02:59]} 11. e5 {[%clk 0:02:48]}  dxe5 {[%clk 0:03:00]} 12. dxe5 {[%clk 0:02:49]}  Ng4 {[%clk 0:03:00]} 13. e6 {[%clk 0:02:43]}  fxe6 {[%clk 0:03:01]} 14. Ng5 {[%clk 0:02:26]}  Qc7 {[%clk 0:01:29]} 15. Qxg4 {[%clk 0:02:25]}  Qxc2 {[%clk 0:01:29]} 16. Qxe6 {[%clk 0:01:50]}  O-O-O {[%clk 0:01:11]} 17. Nc3 {[%clk 0:01:15]}  Qf5 {[%clk 0:00:38]} 18. Qxf5 {[%clk 0:00:50]}  gxf5 {[%clk 0:00:38]} 19. Nf7 {[%clk 0:00:51]}  Bxc3 {[%clk 0:00:37]} 20. bxc3 {[%clk 0:00:50]}  Rhg8 {[%clk 0:00:38]} 21. g3 {[%clk 0:00:41]}  Rde8 {[%clk 0:00:33]} 22. Bf4 {[%clk 0:00:40]}  Nf6 {[%clk 0:00:24]} 23. c4 {[%clk 0:00:23]}  bxc4 {[%clk 0:00:17]} 24. Rac1 {[%clk 0:00:24]}  Bd5 {[%clk 0:00:16]} 25. Ne5 {[%clk 0:00:25]}  Kb7 {[%clk 0:00:08]} 26. Nxc4 {[%clk 0:00:24]}  Bxc4 {[%clk 0:00:04]} 27. Rxc4 {[%clk 0:00:25]}  Nd5 {[%clk 0:00:03]} 28. Bd2 {[%clk 0:00:10]}  Rc8 {[%clk 0:00:02]} 29. Rd4 {[%clk 0:00:11]}  Rgd8 {[%clk 0:00:01]} 30. Re5 {[%clk 0:00:10]}  Nc7 {[%clk 0:00:01]} 31. Rxd8 {[%clk 0:00:08]}  Rxd8 {[%clk 0:00:02]} 32. Ba5 {[%clk 0:00:07]}  e6 {[%clk 0:00:01]} 33. Bxc7 {[%clk 0:00:07]}  Kxc7 {[%clk 0:00:02]} 34. Rxe6 {[%clk 0:00:08]}  Kb7 {[%clk 0:00:02]} 35. Re7+ {[%clk 0:00:08]}  Rd7 {[%clk 0:00:00]} 36. Rxd7+ {[%clk 0:00:08]} 1-0


[Site "https://www.chess.com"]

[Event "Titled Tuesday Blitz August 15 Late 2023"]
[White "Klukin, Kirill"]
[Black "Bluebaum, Matthias"]
[WhiteFideId "24199273"]
[BlackFideId "24651516"]
[WhiteElo "2830"]
[BlackElo "3023"]
[Result "0-1"]
[Round "10"]
[TimeControl "180+1"]
[Date "2023.08.15"]
[WhiteClock "0:00:01"]
[BlackClock "0:00:13"]
[Board "10"]

1. d4 {[%clk 0:03:00]}  d5 {[%clk 0:02:58]} 2. c4 {[%clk 0:03:00]}  e6 {[%clk 0:02:59]} 3. Nc3 {[%clk 0:03:00]}  Bb4 {[%clk 0:02:59]} 4. Bd2 {[%clk 0:02:59]}  c5 {[%clk 0:02:56]} 5. cxd5 {[%clk 0:02:55]}  exd5 {[%clk 0:02:51]} 6. Nf3 {[%clk 0:02:55]}  Nc6 {[%clk 0:02:49]} 7. dxc5 {[%clk 0:02:32]}  Bxc5 {[%clk 0:02:50]} 8. e3 {[%clk 0:02:32]}  Nf6 {[%clk 0:02:50]} 9. Be2 {[%clk 0:02:30]}  O-O {[%clk 0:02:50]} 10. Rc1 {[%clk 0:02:30]}  a6 {[%clk 0:02:49]} 11. O-O {[%clk 0:02:27]}  Qd6 {[%clk 0:02:49]} 12. a3 {[%clk 0:02:22]}  Bg4 {[%clk 0:02:47]} 13. h3 {[%clk 0:02:22]}  Bh5 {[%clk 0:02:47]} 14. b4 {[%clk 0:02:15]}  Ba7 {[%clk 0:02:47]} 15. Na4 {[%clk 0:02:03]}  Rac8 {[%clk 0:02:39]} 16. Bc3 {[%clk 0:01:56]}  Ne4 {[%clk 0:02:34]} 17. Bb2 {[%clk 0:01:54]}  Bb8 {[%clk 0:02:32]} 18. Re1 {[%clk 0:01:10]}  Rfe8 {[%clk 0:02:32]} 19. Nc5 {[%clk 0:01:01]}  Bxf3 {[%clk 0:02:12]} 20. Bxf3 {[%clk 0:01:00]}  Qh2+ {[%clk 0:02:12]} 21. Kf1 {[%clk 0:01:00]}  Nxc5 {[%clk 0:02:08]} 22. Rxc5 {[%clk 0:00:58]}  d4 {[%clk 0:02:08]} 23. Bxd4 {[%clk 0:00:50]}  Rcd8 {[%clk 0:02:01]} 24. Bxc6 {[%clk 0:00:49]}  bxc6 {[%clk 0:02:01]} 25. Qg4 {[%clk 0:00:49]}  g6 {[%clk 0:01:30]} 26. Rd1 {[%clk 0:00:49]}  Be5 {[%clk 0:01:22]} 27. Rc4 {[%clk 0:00:31]}  h5 {[%clk 0:01:13]} 28. Qf3 {[%clk 0:00:31]}  Rd6 {[%clk 0:01:10]} 29. Rxc6 {[%clk 0:00:19]}  Rxd4 {[%clk 0:00:13]} 30. exd4 {[%clk 0:00:17]}  Bxd4 {[%clk 0:00:14]} 31. g3 {[%clk 0:00:16]}  Qxh3+ {[%clk 0:00:14]} 32. Qg2 {[%clk 0:00:16]}  Qf5 {[%clk 0:00:14]} 33. Rcc1 {[%clk 0:00:12]}  Bb6 {[%clk 0:00:11]} 34. Re1 {[%clk 0:00:12]}  Rd8 {[%clk 0:00:12]} 35. Rcd1 {[%clk 0:00:12]}  Rc8 {[%clk 0:00:12]} 36. Re2 {[%clk 0:00:13]}  Rc3 {[%clk 0:00:11]} 37. Qe4 {[%clk 0:00:12]}  Qh3+ {[%clk 0:00:11]} 38. Qg2 {[%clk 0:00:13]}  Qf5 {[%clk 0:00:12]} 39. a4 {[%clk 0:00:08]}  Rf3 {[%clk 0:00:10]} 40. Kg1 {[%clk 0:00:07]}  h4 {[%clk 0:00:10]} 41. gxh4 {[%clk 0:00:06]}  Rf4 {[%clk 0:00:11]} 42. Qd5 {[%clk 0:00:04]}  Qg4+ {[%clk 0:00:10]} 43. Kf1 {[%clk 0:00:04]}  Qh3+ {[%clk 0:00:11]} 44. Qg2 {[%clk 0:00:05]}  Qf5 {[%clk 0:00:11]} 45. Rd5 {[%clk 0:00:05]}  Qb1+ {[%clk 0:00:11]} 46. Re1 {[%clk 0:00:06]}  Qxb4 {[%clk 0:00:11]} 47. Re2 {[%clk 0:00:03]}  Qb1+ {[%clk 0:00:10]} 48. Re1 {[%clk 0:00:03]}  Qa2 {[%clk 0:00:10]} 49. Re2 {[%clk 0:00:03]}  Qa1+ {[%clk 0:00:10]} 50. Re1 {[%clk 0:00:04]}  Qf6 {[%clk 0:00:11]} 51. Rd2 {[%clk 0:00:03]}  Ba5 {[%clk 0:00:11]} 52. Red1 {[%clk 0:00:03]}  Bxd2 {[%clk 0:00:11]} 53. Rxd2 {[%clk 0:00:03]}  Qa1+ {[%clk 0:00:11]} 54. Ke2 {[%clk 0:00:04]}  Qxa4 {[%clk 0:00:12]} 55. Qa8+ {[%clk 0:00:03]}  Kg7 {[%clk 0:00:13]} 56. Qd5 {[%clk 0:00:04]}  Re4+ {[%clk 0:00:12]} 57. Kf3 {[%clk 0:00:04]}  Rxh4 {[%clk 0:00:12]} 58. Qe5+ {[%clk 0:00:04]}  Kh7 {[%clk 0:00:13]} 59. Qf6 {[%clk 0:00:02]}  Qg4+ {[%clk 0:00:13]} 60. Ke3 {[%clk 0:00:01]}  Qe4# {[%clk 0:00:13]} 0-1


[Site "https://www.chess.com"]

[Event "Titled Tuesday Blitz August 15 Late 2023"]
[White "Zhigalko, Sergei"]
[Black "Drygalov, Sergey"]
[WhiteFideId "13502956"]
[BlackFideId "24171743"]
[WhiteElo "2925"]
[BlackElo "2966"]
[Result "0-1"]
[Round "10"]
[TimeControl "180+1"]
[Date "2023.08.15"]
[WhiteClock "0:00:02"]
[BlackClock "0:01:24"]
[Board "13"]

1. e4 {[%clk 0:03:00]}  c5 {[%clk 0:03:00]} 2. Nf3 {[%clk 0:03:01]}  d6 {[%clk 0:03:00]} 3. d4 {[%clk 0:03:01]}  cxd4 {[%clk 0:03:01]} 4. Qxd4 {[%clk 0:03:02]}  Nf6 {[%clk 0:03:01]} 5. Nc3 {[%clk 0:03:02]}  Nc6 {[%clk 0:03:00]} 6. Bb5 {[%clk 0:03:02]}  e6 {[%clk 0:02:58]} 7. e5 {[%clk 0:03:01]}  dxe5 {[%clk 0:02:36]} 8. Qxd8+ {[%clk 0:03:02]}  Kxd8 {[%clk 0:02:37]} 9. Bxc6 {[%clk 0:03:03]}  bxc6 {[%clk 0:02:37]} 10. Nxe5 {[%clk 0:03:03]}  Ke8 {[%clk 0:02:38]} 11. Bd2 {[%clk 0:03:02]}  Bd6 {[%clk 0:02:33]} 12. Nc4 {[%clk 0:02:56]}  Be7 {[%clk 0:02:32]} 13. O-O-O {[%clk 0:02:55]}  c5 {[%clk 0:02:26]} 14. Bf4 {[%clk 0:02:44]}  Bb7 {[%clk 0:02:24]} 15. f3 {[%clk 0:02:20]}  Nd5 {[%clk 0:02:13]} 16. Nxd5 {[%clk 0:01:30]}  Bxd5 {[%clk 0:02:10]} 17. Nd6+ {[%clk 0:00:53]}  Bxd6 {[%clk 0:02:09]} 18. Bxd6 {[%clk 0:00:54]}  c4 {[%clk 0:02:06]} 19. Rhe1 {[%clk 0:00:53]}  Kd7 {[%clk 0:02:06]} 20. Bg3 {[%clk 0:00:43]}  f6 {[%clk 0:01:58]} 21. Re3 {[%clk 0:00:43]}  Kc6 {[%clk 0:01:55]} 22. b3 {[%clk 0:00:26]}  Rhd8 {[%clk 0:01:50]} 23. Rc3 {[%clk 0:00:18]}  Kb5 {[%clk 0:01:49]} 24. bxc4+ {[%clk 0:00:09]}  Bxc4 {[%clk 0:01:49]} 25. a4+ {[%clk 0:00:08]}  Kb4 {[%clk 0:01:48]} 26. Rxd8 {[%clk 0:00:04]}  Rxd8 {[%clk 0:01:49]} 27. Be1 {[%clk 0:00:04]}  Kc5 {[%clk 0:01:48]} 28. Bf2+ {[%clk 0:00:04]}  Kd5 {[%clk 0:01:46]} 29. a5 {[%clk 0:00:02]}  a6 {[%clk 0:01:45]} 30. Bb6 {[%clk 0:00:02]}  Rc8 {[%clk 0:01:42]} 31. Kd2 {[%clk 0:00:03]}  e5 {[%clk 0:01:43]} 32. Ke3 {[%clk 0:00:03]}  g5 {[%clk 0:01:43]} 33. g3 {[%clk 0:00:03]}  h5 {[%clk 0:01:43]} 34. f4 {[%clk 0:00:03]}  exf4+ {[%clk 0:01:43]} 35. gxf4 {[%clk 0:00:04]}  Re8+ {[%clk 0:01:43]} 36. Kf2 {[%clk 0:00:04]}  Re2+ {[%clk 0:01:42]} 37. Kf3 {[%clk 0:00:03]}  g4+ {[%clk 0:01:36]} 38. Kg3 {[%clk 0:00:03]}  Bb5 {[%clk 0:01:36]} 39. f5 {[%clk 0:00:01]}  Ke4 {[%clk 0:01:30]} 40. Rc5 {[%clk 0:00:01]}  Ba4 {[%clk 0:01:27]} 41. Rc4+ {[%clk 0:00:01]}  Kxf5 {[%clk 0:01:24]} 42. Rxa4 {[%clk 0:00:02]}  Kg5 {[%clk 0:01:24]} 43. Bd4 {[%clk 0:00:02]}  h4# {[%clk 0:01:24]} 0-1


[Site "https://www.chess.com"]

[Event "Titled Tuesday Blitz August 15 Late 2023"]
[White "Kazakouski, Valery"]
[Black "Papp, Levente"]
[WhiteFideId "13507443"]
[BlackFideId "751243"]
[WhiteElo "2938"]
[BlackElo "2700"]
[Result "1-0"]
[Round "10"]
[TimeControl "180+1"]
[Date "2023.08.15"]
[WhiteClock "0:00:14"]
[BlackClock "0:00:00"]
[Board "15"]

1. Nf3 {[%clk 0:02:26]}  b6 {[%clk 0:02:57]} 2. g3 {[%clk 0:02:25]}  Bb7 {[%clk 0:02:58]} 3. Bg2 {[%clk 0:02:25]}  g6 {[%clk 0:02:58]} 4. O-O {[%clk 0:02:25]}  Bg7 {[%clk 0:02:58]} 5. c4 {[%clk 0:02:25]}  Nf6 {[%clk 0:02:58]} 6. d4 {[%clk 0:02:26]}  O-O {[%clk 0:02:57]} 7. d5 {[%clk 0:02:26]}  Ne4 {[%clk 0:02:53]} 8. Qc2 {[%clk 0:02:25]}  f5 {[%clk 0:02:53]} 9. Rd1 {[%clk 0:02:25]}  c6 {[%clk 0:02:52]} 10. Nfd2 {[%clk 0:02:19]}  cxd5 {[%clk 0:02:29]} 11. cxd5 {[%clk 0:02:20]}  Nd6 {[%clk 0:02:27]} 12. Nc4 {[%clk 0:02:13]}  Na6 {[%clk 0:02:21]} 13. Nxd6 {[%clk 0:02:12]}  exd6 {[%clk 0:02:21]} 14. Na3 {[%clk 0:02:03]}  Rc8 {[%clk 0:02:18]} 15. Qa4 {[%clk 0:02:00]}  Re8 {[%clk 0:02:05]} 16. e3 {[%clk 0:01:59]}  Nc5 {[%clk 0:02:02]} 17. Qc2 {[%clk 0:01:50]}  Ba6 {[%clk 0:01:58]} 18. Bf1 {[%clk 0:01:27]}  Bxf1 {[%clk 0:01:44]} 19. Kxf1 {[%clk 0:01:27]}  Qg5 {[%clk 0:01:30]} 20. Qe2 {[%clk 0:01:06]}  Ne4 {[%clk 0:01:19]} 21. f3 {[%clk 0:01:02]}  Nc5 {[%clk 0:00:58]} 22. Nc4 {[%clk 0:01:01]}  Nb7 {[%clk 0:00:37]} 23. a4 {[%clk 0:00:52]}  Qh5 {[%clk 0:00:37]} 24. Kg2 {[%clk 0:00:45]}  f4 {[%clk 0:00:34]} 25. gxf4 {[%clk 0:00:41]}  Rf8 {[%clk 0:00:27]} 26. Bd2 {[%clk 0:00:34]}  Qxd5 {[%clk 0:00:23]} 27. Rac1 {[%clk 0:00:34]}  Qh5 {[%clk 0:00:21]} 28. Bb4 {[%clk 0:00:33]}  Rcd8 {[%clk 0:00:17]} 29. Nxd6 {[%clk 0:00:33]}  Nxd6 {[%clk 0:00:16]} 30. Bxd6 {[%clk 0:00:34]}  Rfe8 {[%clk 0:00:16]} 31. Qc4+ {[%clk 0:00:30]}  Re6 {[%clk 0:00:15]} 32. Rd5 {[%clk 0:00:27]}  Qh4 {[%clk 0:00:12]} 33. Bc7 {[%clk 0:00:25]}  Rde8 {[%clk 0:00:12]} 34. Rxd7 {[%clk 0:00:24]}  Kh8 {[%clk 0:00:11]} 35. e4 {[%clk 0:00:23]}  g5 {[%clk 0:00:08]} 36. f5 {[%clk 0:00:20]}  g4 {[%clk 0:00:09]} 37. fxe6 {[%clk 0:00:18]}  Qh3+ {[%clk 0:00:09]} 38. Kg1 {[%clk 0:00:17]}  gxf3 {[%clk 0:00:09]} 39. Qf1 {[%clk 0:00:15]}  Bd4+ {[%clk 0:00:06]} 40. Rxd4 {[%clk 0:00:14]}  Rg8+ {[%clk 0:00:05]} 41. Kh1 {[%clk 0:00:15]}  Rg2 {[%clk 0:00:00]} 42. Be5+ {[%clk 0:00:14]} 1-0


[Site "https://www.chess.com"]

[Event "Titled Tuesday Blitz August 15 Late 2023"]
[White "Rastbod, Ali"]
[Black "Naroditsky, Daniel"]
[WhiteFideId "12567477"]
[BlackFideId "2026961"]
[WhiteElo "2688"]
[BlackElo "3136"]
[Result "0-1"]
[Round "10"]
[TimeControl "180+1"]
[Date "2023.08.15"]
[WhiteClock "0:00:00"]
[BlackClock "0:02:23"]
[Board "17"]

1. d4 {[%clk 0:03:00]}  Nf6 {[%clk 0:03:00]} 2. c4 {[%clk 0:02:57]}  g6 {[%clk 0:03:01]} 3. Nc3 {[%clk 0:02:54]}  Bg7 {[%clk 0:03:01]} 4. e4 {[%clk 0:02:55]}  d6 {[%clk 0:03:02]} 5. Be2 {[%clk 0:02:55]}  O-O {[%clk 0:03:03]} 6. Be3 {[%clk 0:02:55]}  Nc6 {[%clk 0:03:03]} 7. d5 {[%clk 0:02:51]}  Ne5 {[%clk 0:03:03]} 8. f4 {[%clk 0:02:51]}  Neg4 {[%clk 0:03:04]} 9. Bd2 {[%clk 0:02:51]}  Nh6 {[%clk 0:03:05]} 10. h3 {[%clk 0:02:38]}  e6 {[%clk 0:03:04]} 11. dxe6 {[%clk 0:02:34]}  fxe6 {[%clk 0:03:05]} 12. g4 {[%clk 0:02:33]}  Nf7 {[%clk 0:03:05]} 13. Nf3 {[%clk 0:02:30]}  b5 {[%clk 0:03:06]} 14. cxb5 {[%clk 0:02:23]}  Bb7 {[%clk 0:03:07]} 15. Bd3 {[%clk 0:02:24]}  Nd7 {[%clk 0:03:06]} 16. Qe2 {[%clk 0:02:20]}  Nc5 {[%clk 0:03:07]} 17. Bc2 {[%clk 0:02:21]}  a6 {[%clk 0:03:07]} 18. O-O {[%clk 0:01:51]}  axb5 {[%clk 0:03:08]} 19. b4 {[%clk 0:01:51]}  Na4 {[%clk 0:03:08]} 20. Nxa4 {[%clk 0:01:38]}  bxa4 {[%clk 0:03:08]} 21. Rad1 {[%clk 0:01:32]}  d5 {[%clk 0:03:09]} 22. e5 {[%clk 0:01:28]}  Qd7 {[%clk 0:03:10]} 23. Nd4 {[%clk 0:01:15]}  Rae8 {[%clk 0:03:09]} 24. g5 {[%clk 0:01:07]}  Ra8 {[%clk 0:03:05]} 25. Bd3 {[%clk 0:01:02]}  Qe7 {[%clk 0:03:04]} 26. a3 {[%clk 0:01:01]}  Nd8 {[%clk 0:03:00]} 27. Rc1 {[%clk 0:00:56]}  Rc8 {[%clk 0:03:00]} 28. Ba6 {[%clk 0:00:47]}  c5 {[%clk 0:02:57]} 29. bxc5 {[%clk 0:00:42]}  Nc6 {[%clk 0:02:51]} 30. Nxc6 {[%clk 0:00:35]}  Rxc6 {[%clk 0:02:52]} 31. Bb5 {[%clk 0:00:31]}  Rcc8 {[%clk 0:02:44]} 32. c6 {[%clk 0:00:24]}  Ba8 {[%clk 0:02:45]} 33. Bb4 {[%clk 0:00:25]}  Qa7+ {[%clk 0:02:46]} 34. Bc5 {[%clk 0:00:25]}  Qa5 {[%clk 0:02:46]} 35. Bxf8 {[%clk 0:00:25]}  Bxf8 {[%clk 0:02:47]} 36. Rf3 {[%clk 0:00:20]}  Qb6+ {[%clk 0:02:42]} 37. Kh2 {[%clk 0:00:19]}  Bxc6 {[%clk 0:02:42]} 38. Bxc6 {[%clk 0:00:14]}  Rxc6 {[%clk 0:02:43]} 39. Rxc6 {[%clk 0:00:14]}  Qxc6 {[%clk 0:02:44]} 40. h4 {[%clk 0:00:07]}  Qc1 {[%clk 0:02:42]} 41. h5 {[%clk 0:00:08]}  Bc5 {[%clk 0:02:36]} 42. Qg2 {[%clk 0:00:04]}  Be3 {[%clk 0:02:32]} 43. Qg4 {[%clk 0:00:03]}  Kf7 {[%clk 0:02:32]} 44. hxg6+ {[%clk 0:00:03]}  hxg6 {[%clk 0:02:33]} 45. Kh3 {[%clk 0:00:02]}  d4 {[%clk 0:02:24]} 46. Qg2 {[%clk 0:00:03]}  d3 {[%clk 0:02:23]} 47. Rxe3 {[%clk 0:00:02]}  Qxe3+ {[%clk 0:02:24]} 48. Kg4 {[%clk 0:00:02]}  Qe2+ {[%clk 0:02:23]} 49. Kg3 {[%clk 0:00:00]}  Qxg2+ {[%clk 0:02:23]} 0-1


[Site "https://www.chess.com"]

[Event "Titled Tuesday Blitz August 15 Late 2023"]
[White "Cordova, Emilio"]
[Black "Volovich, Vasily"]
[WhiteFideId "3801497"]
[BlackFideId "34169676"]
[WhiteElo "2861"]
[BlackElo "2706"]
[Result "1/2-1/2"]
[Round "10"]
[TimeControl "180+1"]
[Date "2023.08.15"]
[WhiteClock "0:00:02"]
[BlackClock "0:00:05"]
[Board "18"]

1. d4 {[%clk 0:02:48]}  Nf6 {[%clk 0:02:59]} 2. Bg5 {[%clk 0:02:48]}  Ne4 {[%clk 0:02:56]} 3. Bf4 {[%clk 0:02:46]}  d5 {[%clk 0:02:57]} 4. e3 {[%clk 0:02:47]}  c5 {[%clk 0:02:48]} 5. Bd3 {[%clk 0:02:46]}  e6 {[%clk 0:02:45]} 6. Bxe4 {[%clk 0:02:45]}  dxe4 {[%clk 0:02:45]} 7. Nc3 {[%clk 0:02:45]}  cxd4 {[%clk 0:02:36]} 8. exd4 {[%clk 0:02:41]}  Bb4 {[%clk 0:02:34]} 9. Ne2 {[%clk 0:02:35]}  Nc6 {[%clk 0:02:33]} 10. O-O {[%clk 0:02:35]}  Bxc3 {[%clk 0:02:28]} 11. Nxc3 {[%clk 0:02:34]}  Qxd4 {[%clk 0:02:25]} 12. Nb5 {[%clk 0:02:31]}  Qxd1 {[%clk 0:02:21]} 13. Nc7+ {[%clk 0:02:31]}  Ke7 {[%clk 0:02:19]} 14. Raxd1 {[%clk 0:02:30]}  Rb8 {[%clk 0:02:15]} 15. Bd6+ {[%clk 0:02:26]}  Kf6 {[%clk 0:02:13]} 16. Nb5 {[%clk 0:02:07]}  Ra8 {[%clk 0:02:13]} 17. Nc3 {[%clk 0:02:07]}  b6 {[%clk 0:02:04]} 18. Nxe4+ {[%clk 0:02:06]}  Kg6 {[%clk 0:02:04]} 19. Rd3 {[%clk 0:01:55]}  f6 {[%clk 0:01:58]} 20. Rfd1 {[%clk 0:01:53]}  Rd8 {[%clk 0:01:23]} 21. Bc7 {[%clk 0:01:40]}  Rxd3 {[%clk 0:01:22]} 22. Rxd3 {[%clk 0:01:40]}  e5 {[%clk 0:01:11]} 23. Nd6 {[%clk 0:01:34]}  Be6 {[%clk 0:00:54]} 24. c3 {[%clk 0:01:27]}  h6 {[%clk 0:00:49]} 25. a3 {[%clk 0:01:16]}  Kh7 {[%clk 0:00:42]} 26. h4 {[%clk 0:01:14]}  Na5 {[%clk 0:00:37]} 27. b4 {[%clk 0:01:11]}  Nc4 {[%clk 0:00:35]} 28. Nxc4 {[%clk 0:01:11]}  Bxc4 {[%clk 0:00:35]} 29. Rd7 {[%clk 0:01:11]}  b5 {[%clk 0:00:31]} 30. f4 {[%clk 0:00:55]}  exf4 {[%clk 0:00:28]} 31. Bxf4 {[%clk 0:00:56]}  a5 {[%clk 0:00:27]} 32. Be3 {[%clk 0:00:52]}  axb4 {[%clk 0:00:27]} 33. axb4 {[%clk 0:00:53]}  Ra2 {[%clk 0:00:23]} 34. Bd4 {[%clk 0:00:51]}  Kg6 {[%clk 0:00:23]} 35. g4 {[%clk 0:00:47]}  h5 {[%clk 0:00:17]} 36. gxh5+ {[%clk 0:00:47]}  Kxh5 {[%clk 0:00:17]} 37. Rxg7 {[%clk 0:00:47]}  Kxh4 {[%clk 0:00:18]} 38. Bxf6+ {[%clk 0:00:46]}  Kh3 {[%clk 0:00:18]} 39. Be5 {[%clk 0:00:40]}  Re2 {[%clk 0:00:13]} 40. Bd4 {[%clk 0:00:28]}  Bd5 {[%clk 0:00:06]} 41. Rc7 {[%clk 0:00:11]}  Rg2+ {[%clk 0:00:05]} 42. Kf1 {[%clk 0:00:11]}  Bc4+ {[%clk 0:00:06]} 43. Ke1 {[%clk 0:00:12]}  Kg4 {[%clk 0:00:06]} 44. Re7 {[%clk 0:00:10]}  Kf3 {[%clk 0:00:05]} 45. Kd1 {[%clk 0:00:10]}  Re2 {[%clk 0:00:05]} 46. Rxe2 {[%clk 0:00:03]}  Bxe2+ {[%clk 0:00:04]} 47. Kd2 {[%clk 0:00:02]}  Bc4 {[%clk 0:00:05]} 1/2-1/2


[Site "https://www.chess.com"]

[Event "Titled Tuesday Blitz August 15 Late 2023"]
[White "Korchmar, Vasiliy"]
[Black "Zierk, Steven"]
[WhiteFideId "24131750"]
[BlackFideId "2034255"]
[WhiteElo "2685"]
[BlackElo "2859"]
[Result "0-1"]
[Round "10"]
[TimeControl "180+1"]
[Date "2023.08.15"]
[WhiteClock "0:00:34"]
[BlackClock "0:00:44"]
[Board "19"]

1. e4 {[%clk 0:03:00]}  e6 {[%clk 0:02:55]} 2. d4 {[%clk 0:02:59]}  d5 {[%clk 0:02:54]} 3. e5 {[%clk 0:03:00]}  c5 {[%clk 0:02:54]} 4. c3 {[%clk 0:03:00]}  Nc6 {[%clk 0:02:54]} 5. Nf3 {[%clk 0:03:00]}  Qb6 {[%clk 0:02:52]} 6. Be2 {[%clk 0:02:59]}  Bd7 {[%clk 0:02:47]} 7. O-O {[%clk 0:02:58]}  Nge7 {[%clk 0:02:47]} 8. Na3 {[%clk 0:02:58]}  cxd4 {[%clk 0:02:44]} 9. cxd4 {[%clk 0:02:59]}  Nf5 {[%clk 0:02:44]} 10. Nc2 {[%clk 0:02:59]}  Na5 {[%clk 0:02:44]} 11. Bd3 {[%clk 0:02:57]}  Bb5 {[%clk 0:02:42]} 12. g4 {[%clk 0:02:52]}  Ne7 {[%clk 0:02:37]} 13. Kg2 {[%clk 0:02:39]}  Rc8 {[%clk 0:02:32]} 14. Bg5 {[%clk 0:02:35]}  h6 {[%clk 0:02:28]} 15. Be3 {[%clk 0:02:33]}  h5 {[%clk 0:02:23]} 16. h3 {[%clk 0:02:33]}  Bxd3 {[%clk 0:02:14]} 17. Qxd3 {[%clk 0:02:32]}  Qxb2 {[%clk 0:02:13]} 18. Rfc1 {[%clk 0:02:22]}  Rc3 {[%clk 0:01:53]} 19. Qe2 {[%clk 0:01:59]}  Nc4 {[%clk 0:01:42]} 20. Rab1 {[%clk 0:01:54]}  Qxa2 {[%clk 0:01:39]} 21. Rxb7 {[%clk 0:01:51]}  Nc6 {[%clk 0:01:33]} 22. Rc7 {[%clk 0:01:07]}  Be7 {[%clk 0:01:11]} 23. Rxc6 {[%clk 0:01:03]}  Nxe3+ {[%clk 0:01:10]} 24. fxe3 {[%clk 0:00:41]}  Rxc6 {[%clk 0:01:09]} 25. Qb5 {[%clk 0:00:42]}  Qc4 {[%clk 0:01:01]} 26. Qb7 {[%clk 0:00:36]}  Qe2+ {[%clk 0:00:52]} 27. Kg3 {[%clk 0:00:34]}  h4+ {[%clk 0:00:49]} 28. Kf4 {[%clk 0:00:34]}  g5+ {[%clk 0:00:43]} 29. Nxg5 {[%clk 0:00:34]}  Qf2+ {[%clk 0:00:43]} 30. Nf3 {[%clk 0:00:34]}  Qg3# {[%clk 0:00:44]} 0-1


[Site "https://www.chess.com"]